bitfinex-derivatives/quotes_BTCF0:USTF0_20241210
["timestamp","ask_amount","ask_price","bid_price","bid_amount"]
[1733848140663,0.12249879,95565.0,95548.0,1.03786433]
[1733848140867,0.00056001,95591.0,95590.0,0.052283]
[1733848141058,0.00056001,95591.0,95590.0,0.403963]
[1733848141259,0.18159548,95598.0,95596.0,0.052279]
[1733848141659,0.21186139,95607.0,95606.0,0.052274]
[1733848141861,0.18159548,95613.0,95612.0,0.052271]
[1733848142060,0.3608,95628.0,95606.0,0.00012]
[1733848142265,0.09201662,95614.0,95612.0,0.052391]
[1733848142568,0.3608,95628.0,95627.0,0.052262]
[1733848142776,0.3608,95647.0,95627.0,0.403862]
[1733848143070,0.1224756,95644.0,95643.0,0.052254]
[1733848143768,0.17331908,95644.0,95643.0,0.052254]
[1733848143963,0.12257095,95644.0,95643.0,0.052254]
[1733848144162,0.17482495,95644.0,95640.0,0.052255]
[1733848144368,0.1224756,95638.0,95627.0,0.3536]
[1733848144566,0.4832756,95630.0,95628.0,0.052261]
[1733848144867,9.535e-05,95644.0,95643.0,0.052254]
[1733848145061,9.535e-05,95644.0,95639.0,0.3608]
[1733848145258,9.535e-05,95644.0,95643.0,0.00012]
[1733848145472,0.3608,95666.0,95656.0,0.29057097]
[1733848145774,0.1224756,95657.0,95656.0,0.34281697]
[1733848145959,0.1224756,95657.0,95656.0,0.052246]
[1733848146161,0.3608,95657.0,95656.0,0.052246]
[1733848146674,0.3608,95657.0,95656.0,0.01358946]
[1733848146872,0.3608,95657.0,95655.0,0.052247]
[1733848147264,6e-05,95656.0,95655.0,0.052247]
[1733848147464,6e-05,95656.0,95655.0,0.42712392]
[1733848147771,6e-05,95656.0,95655.0,0.06632392]
[1733848147970,6e-05,95656.0,95655.0,0.01407692]
[1733848148167,0.4833356,95656.0,95638.0,0.35152]
[1733848148366,0.413054,95642.0,95638.0,0.35152]
[1733848148573,0.1224756,95639.0,95638.0,0.36536769]
[1733848148974,0.1224756,95639.0,95638.0,0.41762369]
[1733848149163,0.12265031,95639.0,95638.0,0.41762369]
[1733848149986,0.00017471,95639.0,95638.0,0.41762369]
[1733848151076,0.12265031,95639.0,95638.0,0.31624363]
[1733848151864,0.12265031,95639.0,95638.0,0.36849963]
[1733848152274,0.00017471,95639.0,95638.0,0.36549963]
[1733848152473,0.00117471,95639.0,95638.0,0.37049963]
[1733848153478,0.3608,95689.0,95640.0,0.052255]
[1733848153669,0.1224756,95670.0,95669.0,0.05224]
[1733848154069,0.3608,95671.0,95645.0,0.3608]
[1733848154277,0.1224756,95652.0,95645.0,0.3608]
[1733848154469,6e-05,95646.0,95645.0,0.3608]
[1733848155075,6e-05,95646.0,95645.0,0.413053]
[1733848156579,0.00106,95646.0,95645.0,0.418053]
[1733848157170,0.00106,95646.0,95645.0,0.36592894]
[1733848157984,0.1235356,95646.0,95645.0,0.02624116]
[1733848158171,0.4843356,95646.0,95645.0,0.02624116]
[1733848158370,0.052265,95622.0,95621.0,0.00156861]
[1733848158680,0.53546615,95622.0,95621.0,0.00156861]
[1733848158868,0.052274,95606.0,95605.0,0.06224324]
[1733848159070,0.052277,95601.0,95599.0,0.35128]
[1733848159584,6e-05,95600.0,95599.0,0.35128]
[1733848159976,0.00013373,95600.0,95593.0,0.30795998]
[1733848160175,0.41308,95594.0,95593.0,0.25583592]
[1733848160372,0.052283,95590.0,95589.0,0.36904481]
[1733848160677,0.052343,95590.0,95589.0,0.36904481]
[1733848161080,0.052287,95582.0,95581.0,0.00011985]
[1733848161270,0.413087,95582.0,95581.0,0.00011985]
[1733848161574,0.052289,95579.0,95568.0,0.01768432]
[1733848161781,0.413089,95579.0,95557.0,0.0523]
[1733848162077,0.413149,95579.0,95557.0,0.0523]
[1733848162278,0.413149,95579.0,95559.0,0.052299]
[1733848162482,0.052293,95572.0,95554.0,0.68072193]
[1733848162679,0.052293,95572.0,95564.0,0.052297]
[1733848162878,0.052353,95572.0,95564.0,0.052297]
[1733848163074,0.052353,95572.0,95564.0,0.01757207]
[1733848163276,0.052296,95566.0,95565.0,0.44218128]
[1733848163479,0.052299,95560.0,95554.0,0.73302393]
[1733848163777,6e-05,95555.0,95554.0,0.052302]
[1733848163979,6e-05,95555.0,95551.0,0.35136]
[1733848164182,6e-05,95555.0,95554.0,0.052302]
[1733848164374,0.3608,95567.0,95559.0,0.052299]
[1733848164577,0.3608,95567.0,95562.0,0.052298]
[1733848164879,0.3608,95567.0,95526.0,0.3608]
[1733848164880,0.3608,95564.0,95526.0,0.3608]
[1733848165182,0.3608,95543.0,95542.0,0.052309]
[1733848165781,0.3608,95543.0,95541.0,0.01708889]
[1733848166175,6e-05,95542.0,95541.0,0.01708889]
[1733848166375,6e-05,95542.0,95533.0,0.0211276]
[1733848166576,6e-05,95542.0,95540.0,0.05231]
[1733848166776,0.3618,95543.0,95540.0,0.05231]
[1733848166977,0.3618,95543.0,95533.0,0.0211276]
[1733848167178,0.3618,95543.0,95542.0,0.00012]
[1733848167781,0.3618,95543.0,95542.0,0.052429]
[1733848168986,0.3608,95543.0,95542.0,0.055429]
[1733848169490,0.3608,95543.0,95542.0,0.055309]
[1733848170387,0.3608,95543.0,95542.0,0.003]
[1733848170887,0.3608,95543.0,95542.0,0.055309]
[1733848171094,0.3608,95561.0,95542.0,0.003]
[1733848171385,0.3608,95561.0,95560.0,0.00012]
[1733848171590,0.413099,95561.0,95560.0,0.00012]
[1733848172302,0.3608,95561.0,95533.0,0.00018994]
[1733848172595,6e-05,95534.0,95533.0,0.052314]
[1733848173186,6e-05,95534.0,95533.0,0.352314]
[1733848173986,0.052301,95558.0,95549.0,0.052305]
[1733848174287,0.052306,95548.0,95542.0,0.052309]
[1733848174493,0.3608,95545.0,95530.0,0.37783129]
[1733848174695,0.052315,95532.0,95530.0,0.01703129]
[1733848174896,0.3608,95534.0,95529.0,0.00157004]
[1733848175196,0.052376,95530.0,95529.0,0.00157004]
[1733848175488,6e-05,95530.0,95515.0,0.34889231]
[1733848175679,0.3608,95522.0,95515.0,0.34889231]
[1733848176084,0.052323,95517.0,95515.0,0.01710905]
[1733848176291,0.3608,95522.0,95507.0,0.052328]
[1733848176492,0.3608,95514.0,95502.0,0.01826211]
[1733848176696,0.052329,95507.0,95502.0,0.01826211]
[1733848176996,0.36059064,95514.0,95502.0,0.01826211]
[1733848177183,0.052329,95505.0,95502.0,0.01826211]
[1733848177386,0.05233,95504.0,95502.0,0.01826211]
[1733848177992,0.05224626,95504.0,95502.0,0.01826211]
[1733848178188,0.05224626,95504.0,95502.0,0.02126211]
[1733848178493,0.052331,95501.0,95500.0,0.00450608]
[1733848178887,6e-05,95501.0,95500.0,0.00450608]
[1733848179095,6e-05,95501.0,95499.0,0.052332]
[1733848179393,6e-05,95501.0,95497.0,0.052333]
[1733848179592,0.3608,95498.0,95497.0,0.052333]
[1733848179787,6e-05,95498.0,95487.0,0.06991708]
[1733848179998,0.00099,95504.0,95487.0,0.06991708]
[1733848180188,0.00099,95504.0,95503.0,0.05233]
[1733848180381,0.00099,95504.0,95503.0,0.05245]
[1733848180787,0.3608,95520.0,95503.0,0.00012]
[1733848180984,0.3608,95520.0,95503.0,0.0175314]
[1733848181181,0.3608,95520.0,95515.0,0.052444]
[1733848181389,0.3608,95520.0,95515.0,0.00014876]
[1733848181590,0.001,95504.0,95503.0,0.05233]
[1733848181790,2.3e-07,95516.0,95515.0,0.052324]
[1733848181988,2.3e-07,95516.0,95515.0,0.413124]
[1733848182291,2.3e-07,95516.0,95515.0,0.413244]
[1733848183191,2.3e-07,95516.0,95515.0,0.052444]
[1733848183491,0.05232323,95516.0,95515.0,5.501e-05]
[1733848183994,0.35232323,95516.0,95515.0,5.501e-05]
[1733848184500,0.052331,95502.0,95461.0,0.3608]
[1733848184688,0.3608,95478.0,95477.0,0.052345]
[1733848184898,0.3608,95478.0,95465.0,0.35172]
[1733848185097,0.3608,95470.0,95469.0,0.052349]
[1733848185296,0.3608,95488.0,95469.0,0.052349]
[1733848185486,0.00013219,95487.0,95469.0,0.052349]
[1733848185687,0.00013219,95487.0,95485.0,0.05234]
[1733848186689,0.00013219,95487.0,95485.0,0.06955457]
[1733848187404,0.05247119,95487.0,95485.0,0.01721457]
[1733848187698,0.05247119,95487.0,95483.0,0.01714373]
[1733848187897,0.00013219,95487.0,95485.0,0.05234]
[1733848188099,0.00013219,95487.0,95480.0,0.052343]
[1733848188100,0.052341,95485.0,95480.0,0.052343]
[1733848188303,0.413141,95485.0,95480.0,0.052343]
[1733848188501,0.413141,95485.0,95477.0,0.01756533]
[1733848188502,0.052341,95484.0,95481.0,0.052342]
[1733848188906,0.052341,95484.0,95483.0,0.002]
[1733848189499,0.3608,95485.0,95484.0,0.052341]
[1733848190599,0.3608,95485.0,95484.0,0.0170202]
[1733848190792,0.3608,95485.0,95452.0,0.052358]
[1733848190999,0.3608,95472.0,95470.0,0.052348]
[1733848191197,0.3608,95472.0,95458.0,0.052355]
[1733848191392,0.3608,95472.0,95471.0,0.052348]
[1733848192099,0.052341,95484.0,95482.0,0.052342]
[1733848192300,0.052341,95484.0,95464.0,0.052351]
[1733848192301,0.3618,95485.0,95484.0,0.052341]
[1733848192700,0.3608,95485.0,95484.0,0.052341]
[1733848193701,0.3608,95485.0,95483.0,0.00012]
[1733848193904,0.3608,95485.0,95484.0,0.052341]
[1733848194307,0.00013219,95487.0,95486.0,0.05234]
[1733848194604,0.15191408,95504.0,95486.0,0.36092]
[1733848194901,0.3608,95523.0,95516.0,0.052323]
[1733848195299,0.3608,95523.0,95517.0,0.00012]
[1733848195709,0.18226933,95518.0,95517.0,0.00012]
[1733848196503,0.18226933,95518.0,95486.0,0.38175739]
[1733848196504,0.48226933,95518.0,95484.0,0.35184]
[1733848196700,0.48226933,95518.0,95484.0,0.31672923]
[1733848196701,0.41314,95485.0,95484.0,0.31672923]
[1733848196900,0.4132,95485.0,95484.0,0.31672923]
[1733848197101,0.4132,95485.0,95476.0,0.052345]
[1733848197400,6e-05,95484.0,95481.0,0.01866023]
[1733848198507,0.00018611,95484.0,95481.0,0.00157088]
[1733848198915,0.00018611,95484.0,95456.0,0.00010584]
[1733848198916,0.052356,95457.0,95456.0,0.00010584]
[1733848199105,0.77403337,95457.0,95456.0,0.00010584]
[1733848199305,0.77409337,95457.0,95456.0,0.00010584]
[1733848199713,0.052364,95442.0,95409.0,0.052381]
[1733848200011,6e-05,95410.0,95409.0,0.01713601]
[1733848200314,6e-05,95410.0,95409.0,0.052382]
[1733848200707,0.00017639,95410.0,95400.0,0.1]
[1733848201017,0.413246,95401.0,95400.0,0.1]
[1733848201912,0.66086,95401.0,95360.0,0.00580476]
[1733848202109,0.413208,95361.0,95360.0,0.00580476]
[1733848202310,0.052468,95361.0,95360.0,0.00580476]
[1733848202611,0.413268,95361.0,95360.0,0.00580476]
[1733848202812,0.36086,95361.0,95348.0,0.052411]
[1733848203006,0.3608,95359.0,95358.0,0.052405]
[1733848203412,7.563e-05,95360.0,95358.0,0.052405]
[1733848203809,7.563e-05,95360.0,95359.0,0.00012]
[1733848204006,0.12174411,95392.0,95359.0,0.00012]
[1733848204217,0.3608,95388.0,95385.0,0.052389]
[1733848204403,0.12174411,95392.0,95379.0,0.71276]
[1733848204611,0.3608,95412.0,95406.0,0.052378]
[1733848204817,0.17251773,95408.0,95406.0,0.052378]
[1733848205114,0.3608,95429.0,95402.0,0.3608]
[1733848205115,0.3608,95429.0,95417.0,0.052372]
[1733848205304,0.052361,95439.0,95419.0,0.34294197]
[1733848205520,0.3608,95449.0,95427.0,0.052367]
[1733848205521,9.854e-05,95428.0,95427.0,0.052367]
[1733848205719,9.854e-05,95428.0,95418.0,0.60897097]
[1733848205910,9.854e-05,95428.0,95427.0,0.413167]
[1733848206222,0.2421273,95453.0,95441.0,0.052359]
[1733848206417,0.2421273,95453.0,95450.0,0.052354]
[1733848206717,0.2421273,95453.0,95451.0,0.052353]
[1733848206914,0.2421273,95453.0,95452.0,0.3608]
[1733848207119,0.00011258,95452.0,95451.0,0.052353]
[1733848207710,0.00011258,95452.0,95441.0,0.00012]
[1733848207910,0.052358,95443.0,95441.0,0.00012]
[1733848208118,6e-05,95442.0,95441.0,0.00012]
[1733848208618,6e-05,95442.0,95424.0,0.00157186]
[1733848208619,0.052368,95425.0,95424.0,0.00157186]
[1733848208814,0.052368,95425.0,95406.0,0.052378]
[1733848208815,0.052371,95421.0,95406.0,0.052378]
[1733848209009,0.3608,95413.0,95411.0,0.052375]
[1733848209314,0.413163,95434.0,95420.0,0.05237]
[1733848209511,0.3608,95434.0,95425.0,0.3608]
[1733848209707,0.3608,95434.0,95433.0,0.052483]
[1733848209908,0.3608,95457.0,95433.0,0.36092]
[1733848210114,0.3608,95457.0,95439.0,0.29057097]
[1733848210417,0.05246558,95452.0,95451.0,0.00012]
[1733848210721,0.41326558,95452.0,95451.0,0.00012]
[1733848211110,0.36091258,95452.0,95451.0,0.00012]
[1733848211309,0.00011258,95452.0,95451.0,0.00012]
[1733848211610,0.3608,95457.0,95451.0,0.00012]
[1733848211808,0.3608,95457.0,95441.0,0.67538376]
[1733848212210,0.3608,95457.0,95441.0,0.92302476]
[1733848212406,8.185e-05,95456.0,95441.0,0.94028442]
[1733848212810,8.185e-05,95456.0,95441.0,0.27948442]
[1733848213007,8.185e-05,95456.0,95434.0,0.37261699]
[1733848213008,0.3608,95445.0,95434.0,0.37261699]
[1733848213315,0.05237,95421.0,95418.0,0.35204]
[1733848213819,6e-05,95420.0,95419.0,0.01868791]
[1733848214017,6e-05,95420.0,95419.0,0.00157185]
[1733848214821,0.00014381,95420.0,95418.0,0.30131661]
[1733848215014,0.413171,95419.0,95418.0,0.30131661]
[1733848215213,0.413231,95419.0,95418.0,0.30131661]
[1733848216017,0.413231,95419.0,95402.0,0.02110663]
[1733848216018,0.05238,95403.0,95402.0,0.00012514]
[1733848216217,0.05238,95403.0,95402.0,1.4e-07]
[1733848216218,0.77398,95403.0,95402.0,1.4e-07]
[1733848216423,0.052389,95387.0,95361.0,0.45054131]
[1733848216724,0.052389,95387.0,95386.0,0.24761148]
[1733848216725,0.774049,95387.0,95386.0,0.24761148]
[1733848217221,0.052449,95387.0,95386.0,0.24761148]
[1733848217421,0.052582,95387.0,95386.0,0.24761148]
[1733848217918,0.052582,95387.0,95367.0,0.00013054]
[1733848217919,0.413382,95387.0,95367.0,0.00013054]
[1733848218120,0.052392,95381.0,95367.0,0.00013054]
[1733848218520,0.052452,95381.0,95367.0,0.00013054]
[1733848219227,0.052452,95381.0,95367.0,0.05252954]
[1733848219421,0.052452,95381.0,95373.0,0.052396]
[1733848219422,6e-05,95381.0,95373.0,0.052396]
[1733848219718,0.001,95381.0,95380.0,0.3608]
[1733848220314,0.052378,95408.0,95380.0,0.6608]
[1733848220516,0.0206586,95436.0,95400.0,0.3608]
[1733848220723,0.052367,95427.0,95417.0,0.052372]
[1733848220917,7.411e-05,95435.0,95413.0,0.30850476]
[1733848221116,0.052366,95429.0,95419.0,0.052371]
[1733848221316,0.052366,95429.0,95413.0,0.30850476]
[1733848221516,0.052363,95434.0,95426.0,0.052367]
[1733848221830,7.411e-05,95435.0,95421.0,0.36250478]
[1733848221831,7.411e-05,95435.0,95424.0,0.052368]
[1733848222121,6e-05,95425.0,95424.0,0.052368]
[1733848222527,6e-05,95425.0,95424.0,0.05407278]
[1733848223024,0.66086,95425.0,95424.0,7.8e-07]
[1733848223216,0.052377,95408.0,95407.0,0.00012]
[1733848223523,0.77415914,95408.0,95407.0,4.437e-05]
[1733848223724,0.77415914,95408.0,95393.0,3.13e-05]
[1733848223725,0.052385,95394.0,95393.0,3.13e-05]
[1733848223925,0.052385,95394.0,95380.0,0.29057097]
[1733848223926,0.3608,95394.0,95381.0,0.00012806]
[1733848224113,0.36086,95394.0,95386.0,0.3608]
[1733848224317,0.3608,95394.0,95386.0,0.3608]
[1733848224530,0.41329914,95408.0,95381.0,0.052392]
[1733848224729,0.3608,95397.0,95381.0,0.052392]
[1733848224912,0.3608,95397.0,95380.0,0.02169255]
[1733848225119,0.052387,95391.0,95380.0,0.02169255]
[1733848225321,6e-05,95381.0,95380.0,0.07408555]
[1733848226127,6e-05,95381.0,95380.0,0.0006]
[1733848226535,0.00106,95381.0,95380.0,0.0056]
[1733848227026,0.00106,95381.0,95376.0,0.00157263]
[1733848227230,0.052399,95369.0,95342.0,0.3608]
[1733848227426,0.052398,95370.0,95368.0,0.00149583]
[1733848227630,6e-05,95369.0,95368.0,0.00149583]
[1733848227937,6e-05,95369.0,95368.0,0.41469483]
[1733848228527,6e-05,95369.0,95368.0,0.05389483]
[1733848228926,6e-05,95369.0,95368.0,0.00149583]
[1733848229232,6e-05,95369.0,95368.0,0.02325775]
[1733848229530,0.00106,95369.0,95368.0,0.00149583]
[1733848229919,0.00106,95369.0,95368.0,0.36229583]
[1733848230126,0.00106,95369.0,95368.0,0.31000059]
[1733848230436,6e-05,95369.0,95368.0,0.31000059]
[1733848231933,0.00106,95369.0,95368.0,0.31000059]
[1733848233130,0.00106,95369.0,95368.0,0.25770535]
[1733848234037,9.514e-05,95380.0,95379.0,0.052393]
[1733848234238,9.514e-05,95380.0,95368.0,0.25770535]
[1733848234537,9.514e-05,95380.0,95379.0,0.00012]
[1733848234538,0.34305911,95380.0,95379.0,0.00012]
[1733848234835,0.34305911,95380.0,95362.0,0.37393707]
[1733848234836,0.05248814,95380.0,95362.0,0.02177707]
[1733848235045,0.05248814,95380.0,95359.0,0.00010268]
[1733848235046,0.052404,95360.0,95359.0,0.00010268]
[1733848235226,0.413204,95360.0,95359.0,0.00010268]
[1733848235425,0.413264,95360.0,95359.0,0.00010268]
[1733848235929,6e-05,95360.0,95359.0,0.00010268]
[1733848236125,6e-05,95360.0,95353.0,0.02198708]
[1733848236331,6e-05,95360.0,95344.0,0.3608]
[1733848236529,6e-05,95354.0,95352.0,0.413208]
[1733848237432,0.001,95360.0,95352.0,0.413208]
[1733848237433,0.001,95360.0,95359.0,0.052404]
[1733848237830,0.001,95360.0,95359.0,0.052524]
[1733848238536,0.052396,95374.0,95369.0,0.052398]
[1733848238724,0.65146611,95380.0,95364.0,0.35224]
[1733848238928,0.052401,95366.0,95364.0,0.35224]
[1733848239129,0.052401,95366.0,95364.0,0.29994476]
[1733848239432,0.052401,95366.0,95364.0,0.32142771]
[1733848240636,0.3608,95371.0,95364.0,0.32142771]
[1733848240936,0.052401,95365.0,95364.0,0.32142771]
[1733848241238,9.514e-05,95380.0,95370.0,0.052398]
[1733848241537,0.052395,95375.0,95370.0,0.052518]
[1733848241735,0.3608,95373.0,95370.0,0.00012]
[1733848241929,0.052397,95372.0,95370.0,0.00012]
[1733848242128,0.3608,95379.0,95368.0,0.052399]
[1733848242328,0.052401,95365.0,95364.0,0.02148295]
[1733848242641,0.052401,95365.0,95345.0,0.00116]
[1733848242642,0.052401,95365.0,95345.0,0.052412]
[1733848242841,0.052412,95344.0,95343.0,0.02128003]
[1733848243232,0.052472,95344.0,95343.0,0.02128003]
[1733848244842,0.052472,95344.0,95339.0,0.00157319]
[1733848244843,0.052415,95340.0,95339.0,0.00157319]
[1733848245030,0.052421,95328.0,95325.0,0.052422]
[1733848245235,0.052421,95328.0,95300.0,0.75137097]
[1733848245236,0.052423,95324.0,95321.0,0.052425]
[1733848245442,0.052423,95324.0,95322.0,0.052424]
[1733848245941,0.00013148,95323.0,95322.0,0.052424]
[1733848246235,0.3608,95324.0,95304.0,7.368e-05]
[1733848246442,0.3608,95324.0,95310.0,0.052431]
[1733848246443,0.052426,95320.0,95310.0,0.052431]
[1733848246639,0.052426,95320.0,95304.0,7.368e-05]
[1733848246640,0.052426,95319.0,95304.0,7.368e-05]
[1733848246837,0.3608,95324.0,95316.0,0.052427]
[1733848247138,0.4036274,95324.0,95323.0,0.00012]
[1733848247333,0.00012429,95324.0,95323.0,0.052544]
[1733848247534,0.00012429,95324.0,95323.0,0.00012]
[1733848248134,0.00012429,95324.0,95323.0,0.07441516]
[1733848248334,0.00012429,95324.0,95323.0,0.02211992]
[1733848248537,0.00112429,95324.0,95323.0,0.02211992]
[1733848248940,0.00112429,95324.0,95315.0,0.3608]
[1733848249236,0.001,95324.0,95319.0,0.052426]
[1733848249431,6e-05,95344.0,95323.0,0.3608]
[1733848249629,6e-05,95344.0,95342.0,0.052413]
[1733848249829,6e-05,95344.0,95343.0,0.00012]
[1733848250131,0.05255589,95344.0,95343.0,0.00012]
[1733848250639,0.00014389,95344.0,95343.0,0.02142175]
[1733848251539,0.00014389,95344.0,95342.0,0.04369645]
[1733848251729,0.00014389,95344.0,95342.0,0.02215694]
[1733848252038,0.00014389,95344.0,95330.0,0.34299097]
[1733848252039,0.052415,95339.0,95330.0,0.34299097]
[1733848252229,0.052415,95339.0,95330.0,0.05242]
[1733848252434,0.052415,95339.0,95330.0,0.07369144]
[1733848252634,0.052415,95339.0,95333.0,0.02131256]
[1733848253033,0.00014389,95344.0,95334.0,0.052418]
[1733848253241,0.052419,95333.0,95331.0,0.3608]
[1733848253530,0.052419,95331.0,95330.0,0.003]
[1733848253933,0.052479,95331.0,95330.0,0.02487982]
[1733848254130,0.052479,95331.0,95330.0,0.003]
[1733848254335,6e-05,95331.0,95321.0,0.02163084]
[1733848254535,6e-05,95331.0,95320.0,0.29057097]
[1733848254536,0.052423,95325.0,95320.0,0.29057097]
[1733848254737,6e-05,95322.0,95314.0,0.052429]
[1733848254947,6e-05,95321.0,95317.0,0.052427]
[1733848255141,0.05094354,95331.0,95314.0,0.0217754]
[1733848255440,0.05094354,95331.0,95325.0,0.413223]
[1733848255648,0.052425,95321.0,95320.0,0.003]
[1733848255939,0.413225,95321.0,95320.0,0.003]
[1733848256140,0.41261082,95321.0,95320.0,0.003]
[1733848256343,0.3608,95321.0,95314.0,0.003]
[1733848256550,0.413228,95315.0,95314.0,0.003]
[1733848256842,0.413288,95315.0,95314.0,0.003]
[1733848257438,0.36086,95315.0,95273.0,0.3608]
[1733848257636,0.29057097,95310.0,95292.0,0.052441]
[1733848257944,6e-05,95276.0,95275.0,0.05402423]
[1733848258247,0.052443,95289.0,95275.0,0.00157423]
[1733848258449,0.052443,95289.0,95283.0,0.052446]
[1733848258450,9.067e-05,95288.0,95283.0,0.052446]
[1733848258845,9.067e-05,95288.0,95287.0,0.052444]
[1733848259143,0.052432,95309.0,95302.0,0.052435]
[1733848259535,0.3608,95303.0,95287.0,0.3608]
[1733848259736,0.413235,95303.0,95293.0,0.05244]
[1733848259936,0.413235,95303.0,95287.0,0.3608]
[1733848259937,0.413235,95303.0,95294.0,0.052439]
[1733848260135,8.633e-05,95302.0,95294.0,0.052439]
[1733848260445,8.633e-05,95302.0,95287.0,0.38243902]
[1733848260642,0.3608,95322.0,95296.0,0.3608]
[1733848260846,0.3608,95333.0,95296.0,0.3608]
[1733848260847,0.3608,95333.0,95331.0,0.052419]
[1733848261146,0.3608,95333.0,95302.0,0.052435]
[1733848261147,0.3608,95345.0,95328.0,0.35248]
[1733848261337,0.3608,95345.0,95337.0,0.052416]
[1733848261540,0.413212,95345.0,95343.0,0.00012]
[1733848261741,0.00017355,95344.0,95343.0,0.00012]
[1733848262150,0.00017355,95344.0,95343.0,5e-05]
[1733848262953,0.00017355,95344.0,95343.0,0.02201201]
[1733848263343,0.00017355,95344.0,95343.0,5e-05]
[1733848263542,0.30017355,95344.0,95321.0,0.00012]
[1733848263745,0.7216,95322.0,95321.0,0.00012]
[1733848264341,0.7216,95322.0,95321.0,0.00155729]
[1733848264843,0.413217,95336.0,95321.0,0.00155729]
[1733848265150,0.3608,95336.0,95335.0,0.00012]
[1733848265350,0.3608,95336.0,95335.0,0.00155729]
[1733848266051,0.3618,95336.0,95335.0,0.00155729]
[1733848266555,0.3618,95336.0,95301.0,0.3044]
[1733848266850,0.052426,95320.0,95313.0,0.052429]
[1733848267040,6e-05,95302.0,95301.0,0.356836]
[1733848267242,6e-05,95302.0,95301.0,0.37807915]
[1733848268553,0.3608,95332.0,95320.0,0.00012]
[1733848268754,0.05242,95330.0,95326.0,0.052422]
[1733848269049,0.3608,95332.0,95330.0,0.05242]
[1733848269351,0.052421,95328.0,95322.0,0.052424]
[1733848269656,6e-05,95323.0,95310.0,0.29057097]
[1733848270064,6e-05,95311.0,95310.0,0.34300197]
[1733848270256,6e-05,95311.0,95307.0,0.413233]
[1733848270457,0.052431,95310.0,95307.0,0.3608]
[1733848270652,0.3608,95323.0,95307.0,0.38235579]
[1733848270653,6e-05,95308.0,95307.0,0.38235579]
[1733848271158,6e-05,95308.0,95307.0,0.02155579]
[1733848271358,6e-05,95308.0,95303.0,0.052435]
[1733848271752,6e-05,95304.0,95303.0,0.052435]
[1733848272454,6e-05,95304.0,95303.0,0.07396264]
[1733848272652,6e-05,95304.0,95303.0,0.02152764]
[1733848272858,0.00016231,95304.0,95284.0,0.3608]
[1733848273058,0.052444,95286.0,95284.0,0.3608]
[1733848273256,0.052445,95284.0,95283.0,0.35248]
[1733848273656,0.052505,95284.0,95283.0,0.35248]
[1733848274148,0.052505,95284.0,95283.0,0.02186324]
[1733848274344,6e-05,95284.0,95281.0,0.04520392]
[1733848274555,0.052446,95282.0,95281.0,0.04520392]
[1733848274756,0.35106825,95282.0,95244.0,0.1739491]
[1733848274951,0.3608,95245.0,95244.0,0.1739491]
[1733848275159,0.36086,95245.0,95241.0,0.02130524]
[1733848275344,0.052473,95234.0,95221.0,0.02062993]
[1733848275547,0.3608,95237.0,95221.0,0.02062993]
[1733848275750,6e-05,95222.0,95221.0,0.05248]
[1733848276157,6e-05,95222.0,95221.0,0.10009277]
[1733848276360,6e-05,95222.0,95215.0,0.02176001]
[1733848276361,0.052483,95216.0,95215.0,0.02176001]
[1733848276561,0.052484,95214.0,95213.0,9.265e-05]
[1733848276753,0.052484,95214.0,95213.0,0.0212268]
[1733848276955,0.052544,95214.0,95213.0,0.0212268]
[1733848277155,0.352544,95214.0,95213.0,0.0212268]
[1733848277355,0.352544,95214.0,95208.0,0.61808064]
[1733848277356,0.052487,95209.0,95208.0,0.61808064]
[1733848277565,0.413287,95209.0,95208.0,0.61728064]
[1733848277759,0.413347,95209.0,95208.0,0.61728064]
[1733848278153,6e-05,95209.0,95208.0,0.61728064]
[1733848278352,0.00014355,95209.0,95208.0,0.61728064]
[1733848278657,0.00014355,95209.0,95208.0,0.55299274]
[1733848278865,0.00014355,95209.0,95200.0,0.1]
[1733848279162,8.355e-05,95209.0,95200.0,0.1]
[1733848279363,8.355e-05,95209.0,95200.0,0.17457369]
[1733848279565,0.052488,95207.0,95200.0,0.12208269]
[1733848279765,8.355e-05,95209.0,95195.0,0.24266467]
[1733848280061,0.1210399,95234.0,95232.0,0.052474]
[1733848280268,0.33287056,95246.0,95233.0,0.71352]
[1733848280560,0.33287056,95246.0,95245.0,0.413267]
[1733848280764,0.15129988,95247.0,95245.0,0.413267]
[1733848281162,0.15129988,95247.0,95246.0,0.00012]
[1733848281465,0.052446,95283.0,95246.0,0.36092]
[1733848281760,0.3608,95296.0,95245.0,0.3218483]
[1733848281761,0.3608,95296.0,95277.0,0.00012]
[1733848281955,0.3608,95284.0,95278.0,0.35272]
[1733848282151,0.413246,95284.0,95278.0,0.35272]
[1733848282357,0.413246,95284.0,95274.0,0.02200435]
[1733848282358,0.00010887,95283.0,95274.0,0.02200435]
[1733848282555,0.00010887,95283.0,95260.0,7.392e-05]
[1733848282556,0.052458,95261.0,95260.0,7.392e-05]
[1733848282758,0.413258,95261.0,95260.0,9.2e-07]
[1733848282956,0.052473,95234.0,95221.0,0.35272]
[1733848283156,0.774073,95234.0,95221.0,0.35272]
[1733848283363,0.774133,95234.0,95221.0,0.35272]
[1733848283671,0.774133,95234.0,95199.0,0.00157554]
[1733848283672,1.02166,95234.0,95199.0,0.00157554]
[1733848283861,0.052491,95202.0,95199.0,0.00157554]
[1733848284061,6e-05,95200.0,95199.0,0.02375327]
[1733848284356,6e-05,95200.0,95199.0,0.00276335]
[1733848284763,6e-05,95200.0,95198.0,0.33883876]
[1733848284966,6e-05,95200.0,95198.0,0.33803876]
[1733848285259,6e-05,95199.0,95198.0,0.33803876]
[1733848285771,6e-05,95199.0,95198.0,0.36533289]
[1733848285967,6e-05,95199.0,95198.0,0.34049413]
[1733848286363,0.00106,95199.0,95198.0,0.34049413]
[1733848286870,0.053552,95199.0,95198.0,0.02729413]
[1733848287060,0.052552,95199.0,95197.0,0.18619717]
[1733848287362,6e-05,95198.0,95197.0,0.18619717]
[1733848287866,0.00015938,95198.0,95197.0,0.13390193]
[1733848288569,0.00015938,95198.0,95197.0,0.49470193]
[1733848288759,0.00015938,95198.0,95197.0,0.81620193]